fUSD/lending_fUSD_20240127
["ID","MTS","AMOUNT","RATE_DAILY","PERIOD"]
[312834330,1706321453015,-390.95871993,0.00052054,10]
[312834331,1706321453024,-500.0,0.00052054,31]
[312834332,1706321453033,-500.0,0.00052054,31]
[312834333,1706321453043,-200.28290559,0.00052054,31]
[312834334,1706321453053,-500.0,0.00052054,31]
[312834335,1706321453062,-500.0,0.00052054,31]
[312834336,1706321453071,-514.09233337,0.00052054,31]
[312834337,1706321453080,-500.0,0.00052054,31]
[312834338,1706321453090,-500.0,0.00052054,14]
[312834339,1706321453099,-500.0,0.00052054,2]
[312834340,1706321453108,-510.69150455,0.00052054,31]
[312834341,1706321453211,-557.09802322,0.00052054,31]
[312834342,1706321453221,-605.16123931,0.00052054,31]
[312834343,1706321453230,-500.0,0.00052054,31]
[312834344,1706321453239,-540.8165665,0.00052054,31]
[312834345,1706321453250,-554.67753148,0.00052054,31]
[312834346,1706321453259,-500.0,0.00052054,31]
[312834347,1706321453268,-500.0,0.00052054,31]
[312834348,1706321453277,-581.2930352,0.00052054,31]
[312834349,1706321453286,-667.62,0.00052054,31]
[312834350,1706321453295,-500.0,0.00052054,31]
[312834351,1706321453304,-500.0,0.00052054,31]
[312834352,1706321453313,-531.13815981,0.00052054,31]
[312834353,1706321453322,-541.73044572,0.00052054,31]
[312834354,1706321453332,-500.0,0.00052054,31]
[312834355,1706321453341,-1462.72,0.00052054,31]
[312834356,1706321453350,-532.28002368,0.00052054,31]
[312834357,1706321453359,-500.0,0.00052054,31]
[312834358,1706321453368,-519.82576618,0.00052054,31]
[312834359,1706321453377,-500.0,0.00052054,31]
[312834360,1706321453386,-516.32906271,0.00052054,31]
[312834361,1706321453395,-513.69834009,0.00052054,7]
[312834362,1706321453404,-318.56082451,0.00052054,31]
[312834363,1706321453413,-524.92286363,0.00052054,31]
[312834364,1706321453422,-716.93,0.00052054,2]
[312834365,1706321453431,-543.99018128,0.00052054,31]
[312834366,1706321453440,-554.99750591,0.00052054,31]
[312834367,1706321453449,-405.51574401,0.00052054,31]
[312834368,1706321453458,-500.0,0.00052054,2]
[312834369,1706321453467,-519.35111264,0.00052054,31]
[312834370,1706321453475,-630.15444639,0.00052054,2]
[312834371,1706321453484,-500.0,0.00052054,31]
[312834372,1706321453493,-500.0,0.00052054,2]
[312834373,1706321453504,-500.0,0.00052054,31]
[312834374,1706321453513,-500.0,0.00052054,31]
[312834375,1706321453522,-545.19234092,0.00052054,31]
[312834376,1706321453531,-553.77435788,0.00052054,31]
[312834377,1706321453541,-500.0,0.00052054,2]
[312834378,1706321453550,-500.0,0.00052054,31]
[312834379,1706321453558,-543.18663362,0.00052054,31]
[312834380,1706321453567,-725.33100005,0.00052054,30]
[312834381,1706321453576,-500.0,0.00052054,2]
[312834382,1706321453585,-600.0,0.00052054,120]
[312834383,1706321453594,-500.0,0.00052054,31]
[312834384,1706321453603,-536.01433652,0.00052054,31]
[312834385,1706321453612,-561.07666767,0.00052054,2]
[312834386,1706321453622,-622.05890037,0.00052054,31]
[312834387,1706321453631,-500.0,0.00052054,31]
[312834388,1706321453641,-555.0535254,0.00052054,31]
[312834389,1706321453649,-500.0,0.00052054,31]
[312834390,1706321453658,-500.0,0.00052054,31]
[312834391,1706321453667,-500.0,0.00052054,31]
[312834392,1706321453676,-546.95673465,0.00052054,31]
[312834393,1706321453685,-500.0,0.00052054,31]
[312834394,1706321453694,-500.0,0.00052054,31]
[312834395,1706321453703,-584.92505659,0.00052054,31]
[312834396,1706321453712,-537.3706781,0.00052054,31]
[312834397,1706321453721,-569.25271013,0.00052054,31]
[312834398,1706321453734,-201.59179881,0.00052054,31]
[312834399,1706321453743,-500.0,0.00052054,31]
[312834400,1706321453753,-500.0,0.00052054,31]
[312834401,1706321453762,-500.0,0.00052054,31]
[312834402,1706321453771,-576.13691323,0.00052054,31]
[312834403,1706321453780,-500.0,0.00052054,31]
[312834404,1706321453788,-555.24212816,0.00052054,31]
[312834405,1706321453797,-500.0,0.00052054,31]
[312834406,1706321453807,-619.16708767,0.00052054,31]
[312834407,1706321453816,-549.38209937,0.00052054,31]
[312834408,1706321453826,-523.54125594,0.00052054,31]
[312834409,1706321453835,-330.02268838,0.00052054,31]
[312834410,1706321453844,-158.62010913,0.00052054,31]
[312834411,1706321453853,-574.36704621,0.00052054,31]
[312834412,1706321453862,-500.0,0.00052054,31]
[312834413,1706321453871,-665.93,0.00052054,2]
[312834414,1706321453880,-203.14791041,0.00052054,31]
[312834415,1706321453890,-596.09508081,0.00052054,31]
[312834416,1706321453899,-474.42728746,0.00052054,31]
[312834417,1706321453909,-500.0,0.00052054,31]
[312834418,1706321453918,-575.17,0.00052054,31]
[312834419,1706321453928,-500.0,0.00052054,31]
[312834420,1706321453937,-965.88,0.00052054,7]
[312834421,1706321453946,-516.60884142,0.00052054,31]
[312834422,1706321453955,-1028.24030179,0.00052054,30]
[312834423,1706321453964,-197.36,0.00052054,31]
[312834424,1706321453973,-500.0,0.00052054,31]
[312834425,1706321453983,-583.91162143,0.00052054,31]
[312834426,1706321453992,-500.0,0.00052054,31]
[312834427,1706321454003,-569.46553046,0.00052054,31]
[312834428,1706321454013,-641.56419353,0.00052054,31]
[312834429,1706321454023,-853.52,0.00052054,31]
[312834430,1706321454032,-638.50668473,0.00052054,31]
[312834431,1706321454041,-658.14,0.00052054,2]
[312834432,1706321454051,-544.73433384,0.00052054,31]
[312834433,1706321454060,-923.07049989,0.00052054,120]
[312834434,1706321454070,-587.05628569,0.00052054,31]
[312834435,1706321454080,-566.54870805,0.00052054,31]
[312834436,1706321454089,-500.0,0.00052054,31]
[312834437,1706321454103,-628.91530549,0.00052054,31]
[312834438,1706321454112,-509.85,0.00052054,31]
[312834439,1706321454122,-500.0,0.00052054,31]
[312834440,1706321454132,-562.4752551,0.00052054,31]
[312834441,1706321454142,-500.0,0.00052054,31]
[312834442,1706321454152,-577.34952341,0.00052054,31]
[312834443,1706321454162,-500.0,0.00052054,31]
[312834444,1706321454173,-328.55479436,0.00052054,31]
[312834445,1706321454183,-560.58772662,0.00052054,31]
[312834446,1706321454193,-594.93607762,0.00052054,31]
[312834447,1706321454202,-500.0,0.00052054,31]
[312834448,1706321454213,-262.42568878,0.00052054,31]
[312834449,1706321454222,-564.18121094,0.00052054,31]
[312834450,1706321454232,-548.55246055,0.00052054,31]
[312834451,1706321454243,-559.72919802,0.00052054,31]
[312834452,1706321454253,-500.0,0.00052054,31]
[312834453,1706321454262,-543.27369954,0.00052054,31]
[312834454,1706321454272,-571.47288561,0.00052054,31]
[312834455,1706321454281,-571.70090659,0.00052054,31]
[312834456,1706321454290,-500.0,0.00052054,31]
[312834457,1706321454299,-500.0,0.00052054,31]
[312834458,1706321454309,-566.65658479,0.00052054,31]
[312834459,1706321454318,-500.0,0.00052054,31]
[312834460,1706321454327,-500.0,0.00052054,31]
[312834461,1706321454337,-520.71580199,0.00052054,31]
[312834462,1706321454347,-567.29952589,0.00052054,31]
[312834463,1706321454357,-500.0,0.00052054,31]
[312834464,1706321454367,-631.18944759,0.00052054,31]
[312834465,1706321454376,-627.34521466,0.00052054,31]
[312834466,1706321454386,-500.0,0.00052054,31]
[312834467,1706321454395,-298.66534573,0.00052054,31]
[312834468,1706321454405,-500.0,0.00052054,31]
[312834469,1706321454414,-10014.35312695,0.00052054,3]
[312834470,1706321454423,-500.0,0.00052054,31]
[312834471,1706321454433,-507.70788073,0.00052054,31]
[312834472,1706321454442,-150.0,0.00052054,31]
[312834473,1706321454455,-627.9095841,0.00052054,31]
[312834474,1706321454465,-212.54734929,0.00052054,31]
[312834475,1706321454474,-500.0,0.00052054,31]
[312834476,1706321454484,-500.0,0.00052054,31]
[312834477,1706321454494,-500.0,0.00052054,31]
[312834478,1706321454503,-535.53747886,0.00052054,31]
[312834479,1706321454513,-500.0,0.00052054,31]
[312834480,1706321454522,-563.73522778,0.00052054,31]
[312834481,1706321454532,-601.26680242,0.00052054,31]
[312834482,1706321454541,-428.3590258,0.00052054,31]
[312834483,1706321454551,-214.45015302,0.00052054,31]
[312834484,1706321454561,-598.75678546,0.00052054,31]
[312834485,1706321454570,-538.08019983,0.00052054,31]
[312834486,1706321454580,-613.01497801,0.00052054,31]
[312834487,1706321454590,-500.0,0.00052054,5]
[312834488,1706321454600,-567.98255325,0.00052054,31]
[312834489,1706321454609,-915.75,0.00052054,31]
[312834490,1706321454619,-500.0,0.00052054,15]
[312834491,1706321454629,-500.0,0.00052054,31]
[312834492,1706321454638,-435.42968668,0.00052054,31]
[312834493,1706321454648,-181.5073896,0.00052054,31]
[312834494,1706321454658,-1220.47,0.00052054,2]
[312834495,1706321454667,-500.0,0.00052054,31]
[312834496,1706321454677,-544.54191978,0.00052054,31]
[312834497,1706321454686,-583.51230903,0.00052054,31]
[312834498,1706321454695,-500.0,0.00052054,31]
[312834499,1706321454705,-500.0,0.00052054,31]
[312834500,1706321454715,-500.0,0.00052054,31]
[312834501,1706321454724,-500.0,0.00052054,31]
[312834502,1706321454738,-500.0,0.00052054,31]
[312834503,1706321454754,-500.0,0.00052054,31]
[312834504,1706321454763,-500.0,0.00052054,31]
[312834505,1706321454773,-500.0,0.00052054,31]
[312834506,1706321454782,-195.13060258,0.00052054,31]
[312834507,1706321454792,-225.86664485,0.00052054,31]
[312834508,1706321454802,-500.0,0.00052054,31]
[312834509,1706321454815,-192.49777938,0.00052054,31]
[312834510,1706321454825,-500.0,0.00052054,31]
[312834511,1706321454835,-157.53700121,0.00052054,31]
[312834512,1706321454845,-466.90243261,0.00052054,31]
[312834513,1706321454855,-500.0,0.00052054,31]
[312834514,1706321454864,-500.0,0.00052054,31]
[312834515,1706321454875,-500.0,0.00052054,31]
[312834516,1706321454884,-565.00828098,0.00052054,31]
[312834517,1706321454894,-500.0,0.00052054,25]
[312834518,1706321454904,-635.01107006,0.00052054,31]
[312834519,1706321454913,-500.0,0.00052054,31]
[312834520,1706321454923,-500.0,0.00052054,31]
[312834521,1706321454932,-564.34729019,0.00052054,31]
[312834522,1706321454942,-500.0,0.00052054,31]
[312834523,1706321454951,-556.6,0.00052054,2]
[312834524,1706321454962,-553.49532414,0.00052054,31]
[312834525,1706321454971,-1000.0,0.00052054,2]
[312834526,1706321454983,-500.0,0.00052054,31]
[312834527,1706321454993,-522.16530695,0.00052054,31]
[312834528,1706321455003,-566.86747918,0.00052054,31]
[312834529,1706321455012,-554.05229922,0.00052054,31]
[312834530,1706321455021,-247.40647339,0.00052054,31]
[312834531,1706321455031,-936.0,0.00052054,31]
[312834532,1706321455148,-165.35190353,0.00052054,30]
[312834533,1706321455158,-500.0,0.00052054,31]
[312834534,1706321455167,-556.64729056,0.00052054,31]
[312834535,1706321455176,-542.61222854,0.00052054,31]
[312834536,1706321455186,-360.99284025,0.00052054,31]
[312834537,1706321455195,-559.89371359,0.00052054,31]
[312834538,1706321455205,-532.8082719,0.00052054,31]
[312834539,1706321455214,-518.13091063,0.00052054,31]
[312834540,1706321455224,-500.0,0.00052054,31]
[312834541,1706321455232,-542.35760235,0.00052054,31]
[312834542,1706321455242,-505.56574921,0.00052054,31]
[312834543,1706321455251,-1000.0,0.00052054,2]
[312834544,1706321455260,-542.35004693,0.00052054,31]
[312834545,1706321455269,-500.0,0.00052054,31]
[312834546,1706321455278,-553.65525506,0.00052054,31]
[312834547,1706321455287,-500.0,0.00052054,31]
[312834548,1706321455295,-542.66791867,0.00052054,31]
[312834549,1706321455304,-500.0,0.00052054,31]
[312834550,1706321455313,-510.3469013,0.00052054,31]
[312834551,1706321455322,-500.0,0.00052054,31]
[312834552,1706321455331,-256.82116387,0.00052054,31]
[312834553,1706321455340,-547.41014748,0.00052054,31]
[312834554,1706321455349,-516.04294185,0.00052054,31]
[312834555,1706321455357,-506.29552883,0.00052054,10]
[312834556,1706321455366,-545.18284632,0.00052054,31]
[312834557,1706321455375,-372.8864371,0.00052054,31]
[312834558,1706321455384,-500.0,0.00052054,31]
[312834559,1706321455393,-544.43740235,0.00052054,31]
[312834560,1706321455402,-500.0,0.00052054,31]
[312834561,1706321455411,-161.83890688,0.00052054,31]
[312834562,1706321455420,-568.04485748,0.00052054,31]
[312834563,1706321455429,-500.0,0.00052054,15]
[312834564,1706321455438,-548.89669006,0.00052054,31]
[312834565,1706321455447,-500.0,0.00052054,31]
[312834566,1706321455465,-500.0,0.00052054,31]
[312834567,1706321455476,-552.04587327,0.00052054,31]
[312834568,1706321455486,-500.0,0.00052054,31]
[312834569,1706321455495,-500.0,0.00052054,31]
[312834570,1706321455504,-198.76801125,0.00052054,31]
[312834571,1706321455514,-500.0,0.00052054,31]
[312834572,1706321455523,-188.64605073,0.00052054,31]
[312834573,1706321455533,-325.74658724,0.00052054,31]
[312834574,1706321455542,-500.0,0.00052054,31]
[312834575,1706321455551,-500.0,0.00052054,31]
[312834576,1706321455560,-478.92516206,0.00052054,31]
[312834577,1706321455569,-613.44664067,0.00052054,31]
[312834578,1706321455579,-2645.6483776,0.00052054,7]
[312834579,1706321455589,-646.67192793,0.00052054,31]
[312834580,1706321455598,-587.24345161,0.00052054,31]
[312834581,1706321455607,-438.48566063,0.00052054,31]
[312834582,1706321455616,-1000.0,0.00052054,2]
[312834583,1706321455625,-500.0,0.00052054,31]
[312834584,1706321455635,-560.89,0.00052054,31]
[312834585,1706321455645,-500.0,0.00052054,31]
[312834586,1706321455654,-192.606732,0.00052054,31]
[312834587,1706321455663,-500.0,0.00052054,5]
[312834588,1706321455672,-614.68533099,0.00052054,31]
[312834589,1706321455681,-356.1621996,0.00052054,31]
[312834590,1706321455690,-493.77338306,0.00052054,31]
[312834591,1706321455700,-522.4257139,0.00052054,31]
[312834592,1706321455709,-451.44538988,0.00052054,31]
[312834593,1706321455718,-261.7747799,0.00052054,31]
[312834594,1706321455729,-500.0,0.00052054,31]
[312834595,1706321455740,-500.0,0.00052054,31]
[312834596,1706321455750,-2146.19874875,0.00052054,31]
[312834597,1706321455759,-520.96573308,0.00052054,31]
[312834598,1706321455768,-500.0,0.00052054,31]
[312834599,1706321455778,-585.86613466,0.00052054,31]
[312834600,1706321455787,-500.0,0.00052054,7]
[312834601,1706321455796,-458.12051258,0.00052054,31]
[312834602,1706321455805,-162.55498537,0.00052054,31]
[312834603,1706321455815,-500.0,0.00052054,31]
[312834604,1706321455825,-642.57968017,0.00052054,31]
[312834605,1706321455834,-527.47818881,0.00052054,31]
[312834606,1706321455843,-500.0,0.00052054,31]
[312834607,1706321455852,-500.0,0.00052054,31]
[312834608,1706321455861,-500.0,0.00052054,31]
[312834609,1706321455871,-500.0,0.00052054,31]
[312834610,1706321455880,-500.0,0.00052054,31]
[312834611,1706321455889,-500.0,0.00052054,31]
[312834612,1706321455900,-500.0,0.00052054,31]
[312834613,1706321455909,-594.34181067,0.00052054,31]
[312834614,1706321455919,-609.41952438,0.00052054,31]
[312834615,1706321455928,-261.75435577,0.00052054,31]
[312834616,1706321455937,-539.83905352,0.00052054,31]
[312834617,1706321455946,-500.0,0.00052054,31]
[312834618,1706321455955,-500.0,0.00052054,31]
[312834619,1706321455965,-155.99302897,0.00052054,31]
[312834620,1706321455984,-500.0,0.00052054,31]
[312834621,1706321456002,-568.27539183,0.00052054,31]
[312834622,1706321456020,-500.0,0.00052054,31]
[312834623,1706321456033,-193.92770538,0.00052054,31]
[312834624,1706321456049,-207.61744696,0.00052054,31]
[312834625,1706321456065,-617.29362588,0.00052054,31]
[312834626,1706321456081,-514.39,0.00052054,31]
[312834627,1706321456094,-195.41845168,0.00052054,31]
[312834628,1706321456112,-562.18840546,0.00052054,31]
[312834629,1706321456127,-187.78906175,0.00052054,31]
[312834630,1706321456141,-586.61877828,0.00052054,31]
[312834631,1706321456156,-156.81633677,0.00052054,31]
[312834632,1706321456169,-366.68368669,0.00052054,31]
[312834633,1706321456181,-500.0,0.00052054,31]
[312834634,1706321456197,-471.19341173,0.00052054,31]
[312834635,1706321456214,-406.5935194,0.00052054,31]
[312834636,1706321456229,-546.0631936,0.00052054,31]
[312834637,1706321456242,-550.31395427,0.00052054,31]
[312834638,1706321456256,-500.0,0.00052054,7]
[312834639,1706321456271,-406.57139934,0.00052054,31]
[312834640,1706321456287,-500.0,0.00052054,31]
[312834641,1706321456302,-669.78,0.00052054,31]
[312834642,1706321456312,-534.76,0.00052054,31]
[312834643,1706321456323,-352.96842012,0.00052054,31]
[312834644,1706321456336,-10183.91,0.00052054,31]
[312834645,1706321456349,-500.0,0.00052054,31]
[312834646,1706321456363,-500.0,0.00052054,31]
[312834647,1706321456378,-587.21890134,0.00052054,10]
[312834648,1706321456393,-234.2490859,0.00052054,31]
[312834649,1706321456405,-500.0,0.00052054,31]
[312834650,1706321456417,-500.0,0.00052054,31]
[312834651,1706321456429,-500.0,0.00052054,31]
[312834652,1706321456441,-160.84610798,0.00052054,31]
[312834653,1706321456454,-910.5,0.00052054,31]
[312834654,1706321456467,-500.0,0.00052054,31]
[312834655,1706321456480,-171.44764555,0.00052054,31]
[312834656,1706321456493,-525.41311243,0.00052054,31]
[312834657,1706321456506,-211.03654899,0.00052054,31]
[312834658,1706321456519,-580.52712836,0.00052054,31]
[312834659,1706321456532,-500.0,0.00052054,31]
[312834660,1706321456544,-500.0,0.00052054,31]
[312834661,1706321456556,-500.0,0.00052054,31]
[312834662,1706321456569,-214.78237149,0.00052054,31]
[312834663,1706321456581,-500.0,0.00052054,31]
[312834664,1706321456592,-179.51296975,0.00052054,31]
[312834665,1706321456605,-500.0,0.00052054,31]
[312834666,1706321456616,-502.08492111,0.00052054,31]
[312834667,1706321456628,-374.57326373,0.00052054,31]
[312834668,1706321456640,-296.51846606,0.00052054,31]
[312834669,1706321456652,-282.21056445,0.00052054,31]
[312834670,1706321456664,-534.60797143,0.00052054,31]
[312834671,1706321456676,-542.96,0.00052054,31]
[312834672,1706321456687,-206.88994912,0.00052054,31]
[312834673,1706321456700,-350.09709655,0.00052054,31]
[312834674,1706321456712,-265.42554384,0.00052054,31]
[312834675,1706321456724,-500.0,0.00052054,31]
[312834676,1706321456736,-225.14040218,0.00052054,31]
[312834677,1706321456751,-500.0,0.00052054,31]
[312834678,1706321456763,-153.15440421,0.00052054,31]
[312834679,1706321456774,-500.0,0.00052054,31]
[312834680,1706321456787,-622.73549187,0.00052054,31]
[312834681,1706321456800,-500.0,0.00052054,30]
[312834682,1706321456813,-500.0,0.00052054,31]
[312834683,1706321456824,-500.0,0.00052054,31]
[312834684,1706321456836,-228.94188912,0.00052054,31]
[312834685,1706321456849,-500.0,0.00052054,31]
[312834686,1706321456861,-500.0,0.00052054,31]
[312834687,1706321456874,-500.0,0.00052054,31]
[312834688,1706321456886,-500.0,0.00052054,31]
[312834689,1706321456898,-500.0,0.00052054,14]
[312834690,1706321456911,-500.0,0.00052054,31]
[312834691,1706321456923,-501.3805589,0.00052054,31]
[312834692,1706321456935,-327.55084222,0.00052054,31]
[312834693,1706321456947,-500.0,0.00052054,31]
[312834694,1706321456959,-159.40150676,0.00052054,31]
[312834695,1706321456972,-507.2282141,0.00052054,31]
[312834696,1706321456984,-500.0,0.00052054,31]
[312834697,1706321456996,-395.41665143,0.00052054,31]
[312834698,1706321457009,-500.0,0.00052054,31]
[312834699,1706321457021,-500.0,0.00052054,31]
[312834700,1706321457034,-559.1924567,0.00052054,31]
[312834701,1706321457046,-1555.2,0.00052054,31]
[312834702,1706321457059,-500.0,0.00052054,31]
[312834703,1706321457073,-500.0,0.00052054,31]
[312834704,1706321457088,-902.75,0.00052054,31]
[312834705,1706321457101,-500.0,0.00052054,31]
[312834706,1706321457111,-154.14875725,0.00052054,31]
[312834707,1706321457259,-500.0,0.00052054,31]
[312834708,1706321457278,-500.0,0.00052054,31]
[312834709,1706321457288,-500.0,0.00052054,31]
[312834710,1706321457297,-500.0,0.00052054,31]
[312834711,1706321457306,-584.31,0.00052054,31]
[312834712,1706321457315,-235.36178478,0.00052054,31]
[312834713,1706321457324,-500.0,0.00052054,31]
[312834714,1706321457333,-560.1377448,0.00052054,31]
[312834715,1706321457342,-200.90462794,0.00052054,31]
[312834716,1706321457350,-382.33155384,0.00052054,31]
[312834717,1706321457360,-981.42,0.00052054,31]
[312834718,1706321457369,-419.14414364,0.00052054,31]
[312834719,1706321457378,-644.6585668,0.00052054,31]
[312834720,1706321457387,-617.35,0.00052054,5]
[312834721,1706321457396,-416.25854185,0.00052054,31]
[312834722,1706321457405,-500.0,0.00052054,31]
[312834723,1706321457415,-500.0,0.00052054,31]
[312834724,1706321457424,-500.0,0.00052054,31]
[312834725,1706321457433,-277.00909666,0.00052054,31]
[312834726,1706321457442,-265.44684158,0.00052054,31]
[312834727,1706321457451,-630.57377455,0.00052054,31]
[312834728,1706321457460,-195.4861256,0.00052054,31]
[312834729,1706321457469,-231.47246877,0.00052054,31]
[312834730,1706321457478,-564.67890098,0.00052054,2]
[312834731,1706321457487,-500.0,0.00052054,31]
[312834732,1706321457496,-500.0,0.00052054,31]
[312834733,1706321457505,-217.19260259,0.00052054,31]
[312834734,1706321457514,-305.36657165,0.00052054,31]
[312834735,1706321457523,-500.0,0.00052054,31]
[312834736,1706321457532,-218.31297516,0.00052054,31]
[312834737,1706321457541,-500.0,0.00052054,31]
[312834738,1706321457550,-178.25051428,0.00052054,31]
[312834739,1706321457559,-419.61829275,0.00052054,31]
[312834740,1706321457568,-500.0,0.00052054,31]
[312834741,1706321457577,-500.0,0.00052054,31]
[312834742,1706321457586,-500.0,0.00052054,31]
[312834743,1706321457595,-500.0,0.00052054,31]
[312834744,1706321457605,-568.51,0.00052054,31]
[312834745,1706321457614,-500.0,0.00052054,31]
[312834746,1706321457623,-500.0,0.00052054,31]
[312834747,1706321457632,-500.0,0.00052054,31]
[312834748,1706321457641,-224.46444556,0.00052054,31]
[312834749,1706321457649,-186.98173472,0.00052054,31]
[312834750,1706321457658,-259.5879819,0.00052054,3]
[312834751,1706321457667,-500.0,0.00052054,31]
[312834752,1706321457676,-500.0,0.00052054,31]
[312834753,1706321457685,-500.0,0.00052054,31]
[312834754,1706321457694,-318.8758961,0.00052054,31]
[312834755,1706321457703,-210.61553019,0.00052054,31]
[312834756,1706321457712,-392.82570105,0.00052054,31]
[312834757,1706321457721,-441.32884482,0.00052054,31]
[312834758,1706321457731,-500.0,0.00052054,31]
[312834759,1706321457742,-252.13371735,0.00052054,31]
[312834760,1706321457751,-602.10947061,0.00052054,31]
[312834761,1706321457760,-1000.0,0.00052054,7]
[312834762,1706321457770,-500.0,0.00052054,31]
[312834763,1706321457780,-500.0,0.00052054,31]
[312834764,1706321457789,-500.0,0.00052054,31]
[312834765,1706321457797,-500.0,0.00052054,31]
[312834766,1706321457807,-500.0,0.00052054,31]
[312834767,1706321457816,-219.17940235,0.00052054,31]
[312834768,1706321457826,-597.76143846,0.00052054,31]
[312834769,1706321457835,-1000.0,0.00052054,2]
[312834770,1706321457844,-603.43658599,0.00052054,31]
[312834771,1706321457853,-500.0,0.00052054,31]
[312834772,1706321457863,-500.0,0.00052054,31]
[312834773,1706321457873,-1000.0,0.00052054,7]
[312834774,1706321457883,-226.47820557,0.00052054,31]
[312834775,1706321457892,-530.92231201,0.00052054,31]
[312834776,1706321457902,-177.70001737,0.00052054,31]
[312834777,1706321457911,-359.81531448,0.00052054,31]
[312834778,1706321457920,-500.0,0.00052054,31]
[312834779,1706321457929,-500.0,0.00052054,31]
[312834780,1706321457939,-191.15748467,0.00052054,31]
[312834781,1706321457948,-178.21002017,0.00052054,31]
[312834782,1706321457957,-623.10536129,0.00052054,2]
[312834783,1706321457966,-500.0,0.00052054,31]
[312834784,1706321457975,-500.0,0.00052054,31]
[312834785,1706321457985,-205.45005873,0.00052054,31]
[312834786,1706321457993,-500.0,0.00052054,2]
[312834787,1706321458003,-500.0,0.00052054,2]
[312834788,1706321458012,-500.0,0.00052054,2]
[312834789,1706321458021,-500.0,0.00052054,31]
[312834790,1706321458030,-500.0,0.00052054,2]
[312834791,1706321458040,-274.44081807,0.00052054,31]
[312834792,1706321458049,-500.0,0.00052054,2]
[312834793,1706321458058,-500.0,0.00052054,2]
[312834794,1706321458067,-249.48453034,0.00052054,31]
[312834795,1706321458076,-500.0,0.00052054,2]
[312834796,1706321458086,-500.0,0.00052054,2]
[312834797,1706321458095,-500.0,0.00052054,2]
[312834798,1706321458105,-500.0,0.00052054,2]
[312834799,1706321458114,-500.0,0.00052054,2]
[312834800,1706321458122,-500.0,0.00052054,2]
[312834801,1706321458132,-569.21435534,0.00052054,31]
[312834802,1706321458142,-500.0,0.00052054,2]
[312834803,1706321458152,-500.0,0.00052054,2]
[312834804,1706321458162,-439.11454385,0.00052054,2]
[312834805,1706321458171,-500.0,0.00052054,31]
[312834806,1706321458182,-500.0,0.00052054,31]
[312834807,1706321458192,-427.69474146,0.00052054,2]
[312834808,1706321458203,-2400.0,0.00052055,30]
[312834809,1706321458212,-500.0,0.00052055,30]
[312834810,1706321458222,-565.0,0.000521,2]
[312834811,1706321458231,-289.22082177,0.00052123,60]
[312834812,1706321458242,-509.24752369,0.00052139,14]
[312834813,1706321458253,-649.0,0.0005219,3]
[312834814,1706321458263,-72061.06623585,0.000522,3]
[312834815,1706321458274,-965.25445452,0.0005224,4]
[312834816,1706321458283,-289.22082177,0.00052289,60]
[312834817,1706321458292,-181.25,0.00052317,60]
[312834818,1706321458302,-1000.0,0.00052328,2]
[312834819,1706321458310,-500.0,0.00052328,31]
[312834820,1706321458319,-510.88183916,0.00052328,31]
[312834821,1706321458328,-500.0,0.00052328,31]
[312834822,1706321458339,-500.0,0.00052328,31]
[312834823,1706321458348,-502.79333864,0.00052328,31]
[312834824,1706321458358,-803.0642481,0.00052328,7]
[312834825,1706321458367,-500.0,0.00052328,31]
[312834826,1706321458376,-500.0,0.00052328,31]
[312834827,1706321458385,-500.0,0.00052328,31]
[312834828,1706321458395,-500.0,0.00052328,31]
[312834829,1706321458404,-500.0,0.00052328,31]